[Event "Marmaris Karya-18 GM-May 2022"]
[Site "Icmeler-Marmaris"]
[Date "2022.05.14"]
[Round "9.1"]
[White "Blesic, Vaso"]
[Black "Caglar, Sila"]
[Result "1-0"]
[ECO "D26"]
[WhiteElo "2264"]
[BlackElo "2133"]
[Annotator "TA"]
[PlyCount "91"]
[EventDate "2022.05.11"]
[EventCountry "TUR"]
[SourceTitle "playchess.com"]
[Source "ChessBase"]
[SourceQuality "1"]
[TimeControl "5400+30"]

{[%evp 12,91,26,23,24,30,33,12,20,13,11,11,25,0,0,-22,0,0,6,-8,-11,-28,-7,-40,-31,-45,-30,-52,-32,-32,-31,-56,-27,-59,-27,-143,-152,-158,-185,-238,15,25,133,137,308,309,531,536,633,606,639,614,625,624,736,735,714,714,707,652,857,850,798,615,645,622,639,608,622,600,618,614,717,652,1025,701,1122,1041,1246,1243,1308,1120]} 1. d4 {[%emt 0:03:00]} d5 {[%emt 0:09:00]} 2. c4 {[%emt 0:00:00]} dxc4 {[%emt 0:00:00]} 3. Nf3 {[%emt 0:00:00]} Nf6 {[%emt 0:01:00]} 4. e3 {[%emt 0:00:30]} e6 {[%emt 0:01:30]} 5. Bxc4 {[%emt 0:00:00]} a6 {[%emt 0:00:00]} 6. O-O {[%emt 0:00:00]} b5 {[%emt 0:00:00]} 7. Be2 $1 {[%emt 0:01:30][%mdl 4] outshines the older 7.Bd3.} Bb7 {[%emt 0:01:30] D26: Queen's Gambit Accepted: 4 e3 e6 5 Bxc5 c5 sidelines.} 8. a4 {[%emt 0:00:30]} b4 {[%emt 0:00:00]} 9. a5 {[%emt 0:00:30]} Be7 {[%emt 0:01:00] The position is equal.} 10. Nbd2 {[%emt 0:00:00]} O-O {[%emt 0:00:00]} 11. Nc4 {[%emt 0:02:00]} Nbd7 {[%emt 0:02:00]} 12. Bd2 {[%emt 0:01:30]} c5 {[%emt 0:01:30]} 13. Qa4 {[%emt 0:03:30]} Rb8 {[%emt 0:01:30]} 14. Rfd1 {[%emt 0:01:30]} Qc7 {[%emt 0:03:30]} 15. Rac1 {[%emt 0:03:30]} Bc6 {[%emt 0:02:30] [#]} 16. Qa2 $146 {[%emt 0:01:30]} ({Predecessor:} 16. Qa1 Qb7 17. Be1 cxd4 18. exd4 Rfc8 19. Bd2 Nd5 20. b3 Bb5 21. Qb1 Rc6 22. Bd3 {1-0 (38) Rahman,Z (2419)-Masum,H (2054) Dhaka 2021}) 16... Qb7 {[%emt 0:00:30]} (16... Rfd8 {looks sharper.} 17. Nfe5 Bd5 18. b3 Nxe5 19. Nxe5 Ne4) 17. b3 {[%emt 0:06:30][%cal Oc4b6]} Rfd8 {[%emt 0:02:30]} 18. Be1 {[%emt 0:04:30]} cxd4 {[%emt 0:01:30]} 19. exd4 {[%emt 0:03:30]} Be4 {[%emt 0:01:30]} 20. Ncd2 {[%emt 0:07:30]} Bd5 {[%emt 0:04:30]} 21. Qc2 {[%emt 0:00:30]} Bd6 {[%emt 0:00:30]} (21... Rbc8 $5 {[%cal Rc8c2]} 22. Qd3 Nb8 $15) 22. Qd3 {[%emt 0:00:30]} Ra8 {[%emt 0:00:30]} 23. Nc4 {[%emt 0:03:30]} (23. Qe3 $11 {remains equal.}) 23... Bf4 $17 {[%emt 0:00:30] [#] Hoping for ...Be4.} 24. Ne3 {[%emt 0:00:30]} Be4 {[%emt 0:00:30]} 25. Qc4 {[%emt 0:06:30]} (25. Qd2 $142 Nd5 26. Rc4) 25... Bd6 $2 {[%emt 0:01:30]} (25... Bxe3 $19 26. fxe3 Nd5) 26. Nd2 {[%emt 0:00:30][%cal Bf3d2,Bd2e4,Be4d6,Bd6c4][%mdl 32]} Rdc8 {[%emt 0:00:30]} (26... Bd5 $11 27. Nxd5 Nxd5) 27. Nxe4 $16 {[%emt 0:00:30]} Rxc4 $2 {[%emt 0:00:00] A mistake that costs the game.} (27... Nxe4 $16 28. Qd3 Nef6) 28. Nxd6 $18 {[%emt 0:00:00]} Qb8 {[%emt 0:02:00]} (28... Rxc1 29. Nxb7 Rxd1 30. Bxd1 Ra7) 29. Ndxc4 {[%emt 0:06:00] White is clearly winning.} g6 {[%emt 0:04:30]} 30. d5 {[%emt 0:01:30]} exd5 {[%emt 0:00:30]} 31. Nxd5 {[%emt 0:00:30]} Nxd5 {[%emt 0:00:30]} 32. Rxd5 {[%emt 0:00:00][%cal Bd1d5,Bd5e5,Be5e3][%mdl 32]} Qe8 {[%emt 0:01:30]} 33. Bf3 {[%emt 0:00:00]} Rb8 {[%emt 0:00:00]} 34. Bd2 {[%emt 0:00:30][%cal Be1d2,Bd2g5,Bg5h4,Bh4g3,Bg3d6,Bd6b4,Bb4c3][%mdl 32]} Nf6 {[%emt 0:00:00]} 35. Re5 {[%emt 0:01:30]} Qd7 {[%emt 0:00:30]} 36. Bg5 {[%emt 0:00:30]} Kg7 {[%emt 0:00:30]} 37. Rce1 {[%emt 0:01:30]} Qd3 {[%emt 0:02:30]} 38. R5e3 {[%emt 0:00:30]} Qf5 {[%emt 0:00:30]} 39. Bh4 {[%emt 0:00:30]} Rd8 {[%emt 0:01:30]} 40. h3 {[%emt 0:01:30]} h5 {[%emt 0:00:30]} 41. Bg3 {[%emt 0:00:30]} Nh7 {[%emt 0:01:30]} 42. Bd6 {[%emt 0:02:30]} Qc2 {[%emt 0:01:30]} 43. Bxb4 {[%emt 0:00:30] [#] And now Be4 would win.} Rb8 {[%emt 0:01:30]} 44. Bc3+ {[%emt 0:01:30]} Kh6 {[%emt 0:00:30]} 45. Be4 {[%emt 0:00:30]} Qa2 {[%emt 0:00:30]} 46. Ra1 {[%emt 0:00:00] Weighted Error Value: White=0.21 (precise) /Black=0.50} 1-0

[Event "Marmaris Karya-18 GM-May 2022"]
[Site "Icmeler-Marmaris"]
[Date "2022.05.14"]
[Round "9.3"]
[White "Sevdimaliyev, Urfan"]
[Black "Angun, Batu"]
[Result "0-1"]
[ECO "A12"]
[WhiteElo "2331"]
[BlackElo "2326"]
[Annotator "TA"]
[PlyCount "84"]
[EventDate "2022.05.11"]
[EventCountry "TUR"]
[SourceTitle "playchess.com"]
[Source "ChessBase"]
[SourceQuality "1"]
[TimeControl "5400+30"]

{[%evp 12,84,23,18,52,25,26,22,33,36,35,6,32,0,0,-15,0,-20,0,-12,-5,0,0,-60,-39,-39,-47,-100,-92,-97,-75,-81,-66,-106,-106,-103,-79,-78,-61,-64,-65,-62,-62,-63,-67,-63,-67,-68,-64,-76,-81,-76,-78,-80,-77,-105,-105,-111,-121,-174,-154,-280,-297,-392,-384,-395,-393,-392,-391,-457,-450,-694,-594,-906,-643]} 1. Nf3 {[%emt 0:01:00]} Nf6 {[%emt 0:01:00]} 2. b3 {[%emt 0:00:30]} g6 {[%emt 0:00:30]} 3. Bb2 {[%emt 0:00:00]} d5 {[%emt 0:00:30]} 4. e3 {[%emt 0:01:00]} Bg7 {[%emt 0:00:00]} 5. c4 {[%emt 0:00:30]} c6 {[%emt 0:01:00]} 6. Be2 {[%emt 0:00:00]} O-O {[%emt 0:00:30]} 7. O-O Bf5 {[%emt 0:02:30] A12: English Opening: 1...c6 with b3 by White.} 8. d4 {[%emt 0:01:30]} Ne4 {[%emt 0:06:30]} 9. Nbd2 {[%emt 0:00:30]} Nd7 {[%emt 0:00:30][%cal Bb8d7,Bd7f6,Bf6e4][%mdl 32] The position is equal.} 10. cxd5 {[%emt 0:00:00]} cxd5 {[%emt 0:00:00]} 11. Rc1 {[%emt 0:02:00]} Ndf6 {[%emt 0:00:00] [#]} 12. b4 $146 {[%emt 0:01:30]} ({Predecessor:} 12. Ne5 Nxd2 13. Qxd2 Ne4 14. Qb4 f6 15. Nf3 b6 16. Ba6 Nd6 17. a4 Bc8 18. Be2 Bb7 {0-1 (51) Kotlar,A-Schwierzy,H Recklinghausen 1995}) 12... Qb6 {[%emt 0:04:30]} 13. Qa4 {[%emt 0:03:30]} Bd7 {[%emt 0:01:30][%cal Bf5d7,Bd7a4,Ba4b5][%mdl 32]} 14. Qa5 {[%emt 0:03:30]} Qxa5 {[%emt 0:17:30]} 15. bxa5 {[%emt 0:00:30]} Rfc8 {[%emt 0:00:00]} 16. Nxe4 {[%emt 0:03:30]} Nxe4 {[%emt 0:02:00]} 17. Rfd1 {[%emt 0:00:30]} (17. Ne5 $11 Ba4 18. f3) 17... Ba4 {[%emt 0:00:30]} 18. Re1 {[%emt 0:01:30]} e6 {[%emt 0:00:30]} 19. Bd3 {[%emt 0:00:30] [#]} (19. Ne5 $15) 19... Bf8 $1 $17 {[%emt 0:00:30]} 20. a3 {[%emt 0:00:30] Prevents Bb4.} Nd6 {[%emt 0:01:30]} 21. Nd2 {[%emt 0:01:30]} Nb5 {[%emt 0:01:30]} 22. Bxb5 {[%emt 0:00:30]} Bxb5 {[%emt 0:00:00]} 23. f3 {[%emt 0:00:30]} Bd6 {[%emt 0:00:00]} 24. g3 {[%emt 0:00:30]} b6 {[%emt 0:00:30]} 25. axb6 {[%emt 0:01:30]} axb6 {[%emt 0:00:30]} 26. Rxc8+ {[%emt 0:00:00]} Rxc8 {[%emt 0:00:00]} 27. Rc1 {[%emt 0:00:00] Prevents Rc2.} Rxc1+ {[%emt 0:00:00]} 28. Bxc1 $15 {[%emt 0:00:30][%mdl 4096] Endgame KBB-KBN} Kf8 {[%emt 0:00:30] Black is more active.} 29. e4 {[%emt 0:00:30]} Ke8 {[%emt 0:00:00]} 30. f4 {[%emt 0:01:30]} dxe4 {[%emt 0:03:00]} 31. Nxe4 {[%emt 0:00:30]} Be7 {[%emt 0:00:00]} 32. Kf2 {[%emt 0:00:30]} h6 {[%emt 0:01:00]} 33. Ke3 {[%emt 0:00:30]} Kd7 {[%emt 0:00:30]} 34. g4 {[%emt 0:00:30]} f5 {[%emt 0:00:00]} 35. gxf5 {[%emt 0:00:30]} (35. Nc3 $17 {was called for.} Bc4 36. Kf3) 35... exf5 $19 {[%emt 0:00:00]} ({Worse is} 35... gxf5 36. Nc3 Bc4 37. a4 $17) 36. Ng3 {[%emt 0:00:30]} (36. Nc3 $17 {keeps fighting.} Bc4 37. a4) 36... Kc6 {[%emt 0:01:30]} 37. Bb2 {[%emt 0:00:00]} Kd5 {[%emt 0:00:30]} 38. Kd2 {[%emt 0:00:00]} Bd6 {[%emt 0:00:30] This bishop pair is nice.} 39. Ke3 {[%emt 0:00:30]} Kc4 {[%emt 0:00:30]} 40. h4 {[%emt 0:00:30]} h5 {[%emt 0:00:00] Black is clearly winning.} 41. Ne2 {[%emt 0:00:30]} (41. d5 $142 Kxd5 42. Ne2) 41... Kb3 {[%emt 0:00:00]} 42. Bc1 {[%emt 0:00:30]} Kc2 {[%emt 0:00:30] Weighted Error Value: White=0.38/Black=0.06 (flawless)} 0-1

[Event "Marmaris Karya-18 GM-May 2022"]
[Site "Icmeler-Marmaris"]
[Date "2022.05.14"]
[Round "9.4"]
[White "Odeev, Handszar"]
[Black "Ozdemir, Serhan Berat"]
[Result "1/2-1/2"]
[ECO "B20"]
[WhiteElo "2305"]
[BlackElo "2117"]
[Annotator "TA"]
[PlyCount "35"]
[EventDate "2022.05.11"]
[EventCountry "TUR"]
[SourceTitle "playchess.com"]
[Source "ChessBase"]
[SourceQuality "1"]
[TimeControl "5400+30"]

{[%evp 9,35,0,0,0,1,0,-17,2,32,-14,-11,-9,0,0,0,-8,-24,-12,-12,-54,18,0,19,-45,0,0,18,-41]} 1. e4 {[%emt 0:10:00]} c5 {[%emt 0:01:00]} 2. b3 {[%emt 0:00:30]} e6 {[%emt 0:04:30]} 3. Bb2 {[%emt 0:00:30]} b6 {[%emt 0:00:30]} 4. Nc3 {[%emt 0:05:30]} Bb7 {[%emt 0:00:00]} 5. d4 {[%emt 0:01:30]} cxd4 {[%emt 0:06:00]} 6. Qxd4 {[%emt 0:00:00] B20: Sicilian: Unusual White 2nd moves.} Nf6 {[%emt 0:02:30]} 7. e5 {[%emt 0:10:00] [#]} Nc6 $146 {[%emt 0:03:30]} ({Predecessor:} 7... Nd5 8. Nxd5 Bxd5 9. Ne2 Nc6 10. Qd2 Rc8 11. Nf4 Be4 12. Bd3 Bb4 13. c3 Bxd3 14. Nxd3 {0-1 (20) Gauche,C (2197)-Di Berardino,D (2494) Florianopolis 2017}) 8. Qf4 {[%emt 0:00:30]} Qb8 {[%emt 0:15:30]} (8... Nh5 $5 {[%cal Rh5f4]} 9. Qg4 g6 $11) 9. Nb5 {[%emt 0:04:30]} (9. Nf3 $14 {is superior.}) 9... Bb4+ $11 {[%emt 0:08:30]} 10. c3 {[%emt 0:00:30]} Be7 {[%emt 0:03:30]} 11. Nd6+ {[%emt 0:02:30]} Bxd6 {[%emt 0:00:30]} 12. exd6 {[%emt 0:00:30]} e5 {[%emt 0:00:30]} 13. Qd2 {[%emt 0:00:30]} O-O {[%emt 0:12:30]} 14. O-O-O {[%emt 0:00:30]} Ne4 {[%emt 0:00:00]} (14... a5 $15) 15. Qe3 {[%emt 0:00:30]} Nf6 {[%emt 0:00:00]} 16. Qd2 {[%emt 0:00:00]} ({White should play} 16. Nf3 $11) 16... Ne4 {[%emt 0:00:30]} (16... a5 $15) 17. Qe3 {[%emt 0:00:00]} Nf6 {[%emt 0:00:00]} 18. Qd2 {[%emt 0:00:30] A rather calm draw.  Weighted Error Value: White=0.21 (precise) /Black=0.15 (very precise)} (18. Nf3 $11) 1/2-1/2

[Event "Marmaris Karya-18 GM-May 2022"]
[Site "Icmeler-Marmaris"]
[Date "2022.05.14"]
[Round "9.5"]
[White "Darban, Morteza"]
[Black "Inci, Okan"]
[Result "1/2-1/2"]
[ECO "A36"]
[WhiteElo "2279"]
[BlackElo "1688"]
[Annotator "TA"]
[PlyCount "104"]
[EventDate "2022.05.11"]
[EventCountry "TUR"]
[SourceTitle "playchess.com"]
[Source "ChessBase"]
[SourceQuality "1"]
[TimeControl "5400+30"]

{[%evp 16,104,26,30,70,6,6,6,70,62,72,70,72,72,76,79,71,65,90,60,57,47,68,48,91,76,83,79,97,72,140,95,110,113,121,114,112,106,105,117,116,79,118,107,102,93,115,112,116,102,101,80,111,111,96,112,139,133,96,0,0,0,9,0,0,0,13,0,0,0,0,0,0,0,0,0,0,0,0,0,0,0,0,0,0,0,0,0,0,0,0]} 1. c4 {[%emt 0:01:00]} Nf6 {[%emt 0:01:00]} 2. g3 {[%emt 0:01:30]} g6 {[%emt 0:00:00]} 3. Bg2 {[%emt 0:00:00]} Bg7 {[%emt 0:00:00]} 4. Nc3 {[%emt 0:00:00]} O-O {[%emt 0:00:30]} 5. e4 {[%emt 0:02:30]} d6 {[%emt 0:00:00]} 6. Nge2 {[%emt 0:00:30]} c5 {[%emt 0:00:00]} 7. O-O {[%emt 0:00:30]} e5 {[%emt 0:00:30]} 8. d3 {[%emt 0:00:30]} Nc6 {[%emt 0:00:00]} 9. f4 {[%emt 0:03:30] 9.a3 is becoming the main line.} Bg4 {[%emt 0:00:00] A36: Symmetrical English vs ...g6: 4 Bg2 Bg7.} 10. h3 {[%emt 0:03:30]} (10. f5 $14) 10... Bxe2 $11 {[%emt 0:00:30]} 11. Nxe2 {[%emt 0:00:30]} Nd4 {[%emt 0:00:30]} (11... exf4 $11 12. Bxf4 Nh5) 12. Nxd4 {[%emt 0:00:30] [#]} exd4 $146 {[%emt 0:00:00]} ({Predecessor:} 12... cxd4 13. f5 Nd7 14. Qe1 Nc5 15. Rf3 a5 16. g4 g5 17. h4 h6 18. hxg5 hxg5 {½-½ (38) De Vogelaere,R (1963)-Gregory,A (1940) England 2017}) 13. Rb1 {[%emt 0:00:30]} Rb8 {[%emt 0:00:00]} 14. Bd2 {[%emt 0:01:30]} b5 {[%emt 0:00:00]} 15. cxb5 {[%emt 0:03:30]} Rxb5 {[%emt 0:02:00]} 16. Qa4 {[%emt 0:14:30]} Rb8 {[%emt 0:00:00]} 17. g4 {[%emt 0:01:30][%cal Bg3g4,Bg4g5][%mdl 32]} Nd7 {[%emt 0:00:00]} 18. g5 {[%emt 0:03:30]} Qc7 {[%emt 0:01:30]} 19. b3 {[%emt 0:02:30]} h5 {[%emt 0:00:30]} 20. Rbc1 {[%emt 0:03:30]} Nb6 {[%emt 0:00:30]} 21. Qa5 {[%emt 0:01:30]} Qe7 {[%emt 0:00:30]} 22. Rc2 {[%emt 0:03:30]} Nd7 {[%emt 0:01:30]} (22... Rbe8 $142) 23. Bc1 {[%emt 0:03:30]} Rfc8 {[%emt 0:01:30]} 24. h4 {[%emt 0:01:30]} Nf8 {[%emt 0:00:30]} 25. Bh3 {[%emt 0:04:30]} Rc7 {[%emt 0:00:30]} 26. Qe1 {[%emt 0:02:30]} Qd8 {[%emt 0:01:30]} 27. Bd2 {[%emt 0:02:30]} Rcb7 {[%emt 0:00:30]} 28. f5 {[%emt 0:11:30] Black must now prevent f6.} Be5 {[%emt 0:00:30]} 29. Bf4 {[%emt 0:00:00]} Qe8 {[%emt 0:00:30]} 30. Qg3 {[%emt 0:00:00]} Rb5 {[%emt 0:02:30]} 31. Bxe5 {[%emt 0:00:30]} dxe5 {[%emt 0:00:30]} 32. Rfc1 {[%emt 0:02:30] White is more active.} Qe7 {[%emt 0:00:30]} 33. Rc4 {[%emt 0:00:30]} a5 {[%emt 0:01:30]} 34. Qg2 {[%emt 0:04:30]} R8b7 {[%emt 0:01:30]} 35. Qc2 {[%emt 0:00:30] Strongly threatening f6.} Nd7 {[%emt 0:00:30] [#]} 36. fxg6 $1 {[%emt 0:01:30]} fxg6 {[%emt 0:00:00] [#]} 37. Bxd7 {[%emt 0:00:30]} (37. Rf1 $1 $16) 37... Qxd7 {[%emt 0:00:00] The position is equal.} 38. Qg2 {[%emt 0:00:00]} Qe7 {[%emt 0:00:30]} 39. Rf1 {[%emt 0:04:22]} Rb4 {[%emt 0:03:30]} 40. Qc2 {[%emt 0:03:29]} a4 {[%emt 0:00:30]} 41. Rxc5 {[%emt 0:01:03] aiming for Rc8+.} axb3 {[%emt 0:00:30]} 42. axb3 {[%emt 0:00:01]} Rxb3 {[%emt 0:00:30]} 43. Rc8+ {[%emt 0:04:06]} Kh7 {[%emt 0:00:00]} 44. Qc4 {[%emt 0:00:28][%csl Gc8][%cal Rc4g8]} Qg7 {[%emt 0:00:00] Against Qg8+} 45. Rc1 {[%emt 0:00:50]} Rc3 {[%emt 0:01:30]} 46. Rxc3 {[%emt 0:00:10]} dxc3 {[%emt 0:00:00][%mdl 4096] Endgame KQR-KQR} 47. Kg2 {[%emt 0:01:23]} c2 {[%emt 0:02:00]} 48. Qxc2 {[%emt 0:02:21]} Qd7 {[%emt 0:00:30] Hoping for ...Qg4+.} 49. Kh2 {[%emt 0:00:25]} Qf7 {[%emt 0:00:30] Prevents Rf8.} 50. Kg2 {[%emt 0:02:50]} Qd7 {[%emt 0:00:30] And now ...Qg4+ would win.} 51. Kh2 {[%emt 0:02:30]} Qf7 {[%emt 0:00:30] Prevents Rf8.} 52. Kg2 {[%emt 0:02:58]} Qd7 {[%emt 0:00:00] Weighted Error Value: White=0.11 (very precise) /Black=0.13 (very precise)} 1/2-1/2